fUST/lending_fUST_20250429
["ID","MTS","AMOUNT","RATE_DAILY","PERIOD"]
[359316958,1745916638987,-4007.2,0.00035616,3]
[359316959,1745916638996,-400.0,0.00035616,3]
[359316960,1745916639005,-400.61230521,0.00035616,3]
[359316961,1745916639015,-464.14,0.00035616,3]
[359316962,1745916639024,-400.0,0.00035616,3]
[359316963,1745916639033,-905.54,0.00035616,3]
[359316964,1745916639042,-400.0,0.00035616,3]
[359316965,1745916639051,-400.0,0.00035616,3]
[359316966,1745916639060,-5751.11,0.00035616,3]
[359316967,1745916639069,-591.45,0.00035616,3]
[359316968,1745916639079,-400.0,0.00035616,3]
[359316969,1745916639088,-400.0,0.00035616,3]
[359316970,1745916639097,-400.0,0.00035616,3]
[359316971,1745916639106,-400.0,0.00035616,3]
[359316972,1745916639116,-400.0,0.00035616,3]
[359316973,1745916639125,-400.0,0.00035616,3]
[359316974,1745916639134,-400.0,0.00035616,3]
[359316975,1745916639144,-400.0,0.00035616,3]
[359316976,1745916639153,-810.91,0.00035616,3]
[359316977,1745916639163,-3713.5,0.00035616,3]
[359316978,1745916639173,-400.0,0.00035616,3]
[359316979,1745916639182,-400.0,0.00035616,3]
[359316980,1745916639192,-400.0,0.00035616,3]
[359316981,1745916639201,-400.0,0.00035616,3]
[359316982,1745916639210,-400.0,0.00035616,3]
[359316983,1745916639219,-4188.14,0.00035616,3]
[359316984,1745916639229,-400.0,0.00035616,3]
[359316985,1745916639239,-400.0,0.00035616,3]
[359316986,1745916639248,-470.37,0.00035616,3]
[359316987,1745916639258,-400.0,0.00035616,3]
[359316988,1745916639267,-400.0,0.00035616,3]
[359316989,1745916639277,-859.92,0.00035616,3]
[359316990,1745916639287,-1065.54,0.00035616,3]
[359316991,1745916639297,-1080.21,0.00035616,3]
[359316992,1745916639306,-400.0,0.00035616,3]
[359316993,1745916639316,-1493.59,0.00035616,3]
[359316994,1745916639325,-3215.15,0.00035616,3]
[359316995,1745916639335,-151.0,0.00035616,3]
[359316996,1745916639345,-400.0,0.00035616,3]
[359316997,1745916639354,-614.01,0.00035616,3]
[359316998,1745916639363,-500.0,0.00035616,3]
[359316999,1745916639374,-400.0,0.00035616,3]
[359317000,1745916639383,-151.0,0.00035616,3]
[359317001,1745916639393,-400.0,0.00035616,3]
[359317002,1745916639403,-151.0,0.00035616,3]
[359317003,1745916639413,-5743.38,0.00035616,3]
[359317004,1745916639422,-400.0,0.00035616,3]
[359317005,1745916639433,-400.0,0.00035616,3]
[359317006,1745916639443,-151.0,0.00035616,3]
[359317007,1745916639452,-400.0,0.00035616,3]
[359317008,1745916639461,-4484.02,0.00035616,3]
[359317009,1745916639471,-400.0,0.00035616,3]
[359317010,1745916639480,-400.0,0.00035616,3]
[359317011,1745916639489,-40.95584155,0.00035616,3]
[359317013,1745916639719,-359.04415845,0.00035616,3]
[359317014,1745916639728,-400.0,0.00035616,3]
[359317015,1745916639738,-206.84974077,0.00035616,3]
[359317016,1745916639748,-400.0,0.00035616,3]
[359317017,1745916639757,-400.0,0.00035616,3]
[359317018,1745916639766,-400.0,0.00035616,3]
[359317019,1745916639776,-903.8,0.00035616,3]
[359317020,1745916639785,-400.0,0.00035616,3]
[359317021,1745916639794,-416.62875581,0.00035616,3]
[359317022,1745916639803,-182.09454954,0.00035616,3]
[359317023,1745916639812,-400.0,0.00035616,3]
[359317024,1745916639821,-893.37,0.00035616,3]
[359317025,1745916639831,-400.0,0.00035616,3]
[359317026,1745916639840,-400.0,0.00035616,3]
[359317027,1745916639849,-400.0,0.00035616,3]
[359317028,1745916639861,-400.0,0.00035616,3]
[359317029,1745916639871,-4033.61,0.00035616,3]
[359317030,1745916639880,-500.0,0.00035616,3]
[359317031,1745916639889,-431.82259436,0.00035616,3]
[359317032,1745916639899,-2439.5,0.00035616,3]
[359317034,1745916639908,-400.0,0.00035616,3]
[359317036,1745916639918,-400.0,0.00035616,3]
[359317038,1745916639928,-400.0,0.00035616,3]
[359317040,1745916639939,-400.0,0.00035616,3]
[359317042,1745916639949,-400.0,0.00035616,3]
[359317044,1745916639958,-400.0,0.00035616,3]
[359317046,1745916639968,-669.49,0.00035616,3]
[359317048,1745916639978,-2856.07,0.00035616,3]
[359317050,1745916639987,-400.0,0.00035616,3]
[359317051,1745916639996,-400.0,0.00035616,3]
[359317053,1745916640006,-400.0,0.00035616,3]
[359317054,1745916640015,-400.0,0.00035616,3]
[359317055,1745916640025,-400.0,0.00035616,3]
[359317056,1745916640035,-400.0,0.00035616,3]
[359317057,1745916640044,-400.0,0.00035616,3]
[359317058,1745916640053,-638.96,0.00035616,3]
[359317059,1745916640062,-400.0,0.00035616,3]
[359317060,1745916640072,-923.67,0.00035616,3]
[359317061,1745916640082,-400.0,0.00035616,3]
[359317062,1745916640091,-400.0,0.00035616,3]
[359317063,1745916640100,-400.0,0.00035616,3]
[359317064,1745916640109,-403.01,0.00035616,3]
[359317065,1745916640119,-400.0,0.00035616,3]
[359317066,1745916640128,-400.0,0.00035616,3]
[359317067,1745916640137,-400.0,0.00035616,3]
[359317068,1745916640147,-12987.11,0.00035616,3]
[359317069,1745916640156,-481.88,0.00035616,3]
[359317070,1745916640165,-204.16734598,0.00035616,3]
[359317071,1745916640175,-324.86535029,0.00035616,3]
[359317072,1745916640185,-2203.25,0.00035616,3]
[359317073,1745916640194,-3661.12,0.00035616,3]
[359317074,1745916640204,-400.0,0.00035616,3]
[359317075,1745916640213,-400.0,0.00035616,3]
[359317076,1745916640222,-400.0,0.00035616,3]
[359317077,1745916640233,-222.41284324,0.00035616,3]
[359317078,1745916640244,-400.0,0.00035616,3]
[359317079,1745916640253,-500.0,0.00035616,3]
[359317080,1745916640263,-400.0,0.00035616,3]
[359317081,1745916640273,-1266.25,0.00035616,3]
[359317082,1745916640284,-1219.43,0.00035616,3]
[359317083,1745916640294,-400.0,0.00035616,3]
[359317084,1745916640304,-400.0,0.00035616,3]
[359317085,1745916640314,-2898.48,0.00035616,3]
[359317086,1745916640324,-515.13,0.00035616,3]
[359317087,1745916640333,-400.0,0.00035616,3]
[359317088,1745916640342,-400.0,0.00035616,3]
[359317089,1745916640352,-544.19,0.00035616,3]
[359317090,1745916640361,-400.0,0.00035616,3]
[359317091,1745916640371,-1024.6,0.00035616,3]
[359317092,1745916640380,-400.0,0.00035616,3]
[359317093,1745916640389,-400.0,0.00035616,3]
[359317094,1745916640399,-400.0,0.00035616,3]
[359317095,1745916640408,-400.0,0.00035616,3]
[359317096,1745916640418,-400.0,0.00035616,3]
[359317097,1745916640427,-400.0,0.00035616,3]
[359317098,1745916640436,-400.0,0.00035616,3]
[359317099,1745916640445,-400.0,0.00035616,3]
[359317100,1745916640454,-400.0,0.00035616,3]
[359317101,1745916640463,-3654.5,0.00035616,3]
[359317102,1745916640473,-400.0,0.00035616,3]
[359317103,1745916640482,-1260.2,0.00035616,3]
[359317104,1745916640490,-400.0,0.00035616,3]
[359317105,1745916640500,-474.00054583,0.00035616,3]
[359317106,1745916640528,-1745.07759344,0.00035616,3]
[359317107,1745916640540,-2011.83186073,0.00035616,3]
[359317108,1745916640549,-400.0,0.00035616,3]
[359317109,1745916640558,-400.0,0.00035616,3]
[359317110,1745916640568,-400.0,0.00035616,3]
[359317111,1745916640577,-917.82,0.00035616,3]
[359317112,1745916640586,-1320.41,0.00035616,3]
[359317113,1745916640595,-400.0,0.00035616,3]
[359317114,1745916640604,-400.0,0.00035616,3]
[359317115,1745916640613,-400.0,0.00035616,3]
[359317116,1745916640622,-400.0,0.00035616,3]
[359317117,1745916640632,-582.71,0.00035616,3]
[359317118,1745916640641,-12.26121309,0.00035616,3]
[359317122,1745916643011,-984.01878691,0.00035616,3]
[359317123,1745916643021,-2657.68770912,0.00035616,3]
[359317124,1745916643032,-479.93791128,0.00035616,3]
[359317125,1745916643065,-3652.8543796,0.00035616,3]
[359317126,1745916643075,-650.13,0.00035616,3]
[359317127,1745916643084,-400.0,0.00035616,3]
[359317128,1745916643093,-400.0,0.00035616,3]
[359317129,1745916643103,-1784.09,0.00035616,3]
[359317130,1745916643112,-3737.53,0.00035616,3]
[359317132,1745916643122,-1160.96,0.00035616,3]
[359317133,1745916643131,-400.0,0.00035616,3]
[359317134,1745916643141,-4718.68,0.00035616,3]
[359317135,1745916643150,-400.0,0.00035616,3]
[359317136,1745916643160,-4679.28,0.00035616,3]
[359317137,1745916643170,-213.23947077,0.00035616,3]
[359317138,1745916643180,-400.0,0.00035616,3]
[359317139,1745916643189,-400.0,0.00035616,3]
[359317140,1745916643198,-1250.9,0.00035616,3]
[359317141,1745916643208,-859.73,0.00035616,3]
[359317142,1745916643217,-400.0,0.00035616,3]
[359317143,1745916643226,-400.0,0.00035616,3]
[359317144,1745916643235,-400.0,0.00035616,3]
[359317145,1745916643245,-400.0,0.00035616,3]
[359317146,1745916643254,-646.0,0.00035616,3]
[359317147,1745916643263,-400.0,0.00035616,2]
[359317148,1745916643273,-400.0,0.00035616,3]
[359317149,1745916643282,-400.0,0.00035616,3]
[359317150,1745916643292,-3235.91,0.00035616,3]
[359317151,1745916643311,-2690.48,0.00035616,3]
[359317152,1745916643322,-400.0,0.00035616,3]
[359317153,1745916643332,-525.36866491,0.00035616,3]
[359317154,1745916643343,-500.0,0.00035616,14]
[359317155,1745916643353,-3600.61,0.00035616,3]
[359317156,1745916643363,-2920.18,0.00035616,3]
[359317157,1745916643373,-400.0,0.00035616,3]
[359317158,1745916643384,-754.99843335,0.00035616,3]
[359317171,1745916645950,-405.82156665,0.00035616,3]
[359317173,1745916645961,-400.0,0.00035616,3]
[359317175,1745916645970,-86.52843337,0.00035616,3]
[359317177,1745916645983,-313.47156663,0.00035616,3]
[359317179,1745916645993,-788.49,0.00035616,3]
[359317181,1745916646003,-400.0,0.00035616,3]
[359317183,1745916646013,-400.0,0.00035616,3]
[359317185,1745916646023,-400.0,0.00035616,3]
[359317187,1745916646034,-400.0,0.00035616,3]
[359317190,1745916646044,-382.81611197,0.00035616,3]
[359317213,1745917435366,739.14,0.00027397,30]
[359317258,1745917838135,-250.0,0.00025187,2]
[359317259,1745917838146,-1000.0,0.00025187,2]
[359317260,1745917838158,-164.55140773,0.00027297,2]
[359317261,1745917838169,-159.62677,0.00027397,2]
[359317262,1745917838179,-130.86881204,0.00028,10]
[359317263,1745917838195,-182.48217935,0.00028,10]
[359317264,1745917838206,-700.05,0.000303,2]
[359317265,1745917838215,-237.42791061,0.000329,10]
[359317266,1745917838227,-206.8957478,0.00033022,2]
[359317267,1745917838237,-159.62677,0.00033165,2]
[359317268,1745917838247,-152.0,0.00034679,2]
[359317269,1745917838256,-310.373984,0.00034728,2]
[359317270,1745917838266,-885.30077001,0.000348,7]
[359317271,1745917838278,-1811.9,0.000348,7]
[359317274,1745917838290,-302.79922999,0.000348,7]
[359317276,1745917838301,-253.0,0.00034827,3]
[359317278,1745917838311,-486.50399763,0.00034828,2]
[359317280,1745917838320,-176.56366163,0.00034828,2]
[359317282,1745917838330,-269.53989054,0.0003489,2]
[359317284,1745917838339,-401.97,0.0003489,3]
[359317286,1745917838348,-200.98,0.0003489,3]
[359317287,1745917838358,-602.97,0.0003489,3]
[359317288,1745917838367,-500.0,0.00034899,7]
[359317289,1745917838376,-500.0,0.00034899,2]
[359317290,1745917838386,-500.0,0.00034899,2]
[359317291,1745917838395,-90.67322021,0.00034899,7]
[359317292,1745917838407,-409.32677979,0.00034899,7]
[359317293,1745917838423,-328.17322021,0.00034899,2]
[359317320,1745917840533,-171.82677979,0.00034899,2]
[359317322,1745917840542,-154.74025143,0.00034899,7]
[359317324,1745917840554,-500.0,0.00034899,2]
[359317326,1745917840566,-500.0,0.00034899,2]
[359317328,1745917840578,-500.0,0.00034899,2]
[359317331,1745917840592,-500.0,0.00034899,2]
[359317333,1745917840602,-500.0,0.00034899,2]
[359317335,1745917840611,-500.0,0.00034899,2]
[359317337,1745917840622,-500.0,0.00034899,2]
[359317339,1745917840631,-500.0,0.00034899,2]
[359317341,1745917840641,-500.0,0.00034899,2]
[359317343,1745917840650,-500.0,0.00034899,2]
[359317345,1745917840660,-500.0,0.00034899,2]
[359317347,1745917840669,-500.0,0.00034899,2]
[359317349,1745917840679,-237.44821707,0.00034899,2]
[359317351,1745917840689,-500.0,0.00034899,2]
[359317353,1745917840699,-90.26622458,0.00034899,2]
[359317355,1745917840715,-409.73377542,0.00034899,2]
[359317357,1745917840725,-268.9401586,0.00034899,2]
[359317560,1745917843287,-231.0598414,0.00034899,2]
[359317562,1745917843298,-500.0,0.00034899,2]
[359317564,1745917843307,-500.0,0.00034899,2]
[359317566,1745917843317,-500.0,0.00034899,2]
[359317568,1745917843326,-500.0,0.00034899,2]
[359317570,1745917843336,-500.0,0.00034899,2]
[359317573,1745917843345,-500.0,0.00034899,2]
[359317575,1745917843355,-500.0,0.00034899,7]
[359317577,1745917843364,-600.0,0.00034899,7]
[359317579,1745917843374,-500.0,0.00034899,2]
[359317581,1745917843383,-500.0,0.00034899,2]
[359317583,1745917843392,-500.0,0.00034899,2]
[359317585,1745917843402,-500.0,0.00034899,2]
[359317587,1745917843411,-409.64766222,0.00034899,2]
[359317589,1745917843421,-169977.89823738,0.000349,2]
[359317591,1745917843431,-769.4785,0.00035,120]
[359317594,1745917843449,-310.373984,0.00035025,2]
[359317597,1745917843461,-310.373984,0.00035222,2]
[359317599,1745917843471,-176.56366163,0.00035309,2]
[359317601,1745917843481,-2200.0,0.00035337,7]
[359317603,1745917843491,-310.373987,0.00035396,2]
[359317605,1745917843501,-486.50399762,0.00035505,2]
[359317607,1745917843511,-2805.4,0.00035516,2]
[359317609,1745917843521,-2805.4,0.00035516,2]
[359317611,1745917843531,-2805.4,0.00035516,2]
[359317613,1745917843540,-2805.4,0.00035516,2]
[359317615,1745917843550,-2805.4,0.00035516,2]
[359317617,1745917843561,-2805.4,0.00035516,2]
[359317619,1745917843571,-2805.4,0.00035516,2]
[359317621,1745917843581,-2805.4,0.00035516,2]
[359317623,1745917843591,-2805.4,0.00035516,2]
[359317625,1745917843600,-2805.4,0.00035516,2]
[359317628,1745917843610,-2805.4,0.00035516,2]
[359317630,1745917843620,-207.4,0.00035587,2]
[359317632,1745917843630,-3000.0,0.000356,10]
[359317634,1745917843639,-1482.46939797,0.00035606,3]
[359317636,1745917843649,-3000.0,0.00035614,8]
[359317638,1745917843659,-154.06,0.00035615,42]
[359317640,1745917843669,-397.88902629,0.00035615,7]
[359317642,1745917843678,-602.86914089,0.00035615,7]
[359317644,1745917843688,-200.86078984,0.00035615,7]
[359317646,1745917843698,-2939.83634692,0.00035616,2]
[359317648,1745917843708,-400.0,0.00035616,3]
[359317650,1745917843718,-400.0,0.00035616,3]
[359317652,1745917843728,-400.0,0.00035616,3]
[359317654,1745917843737,-400.0,0.00035616,3]
[359317656,1745917843747,-400.0,0.00035616,3]
[359317658,1745917843756,-400.0,0.00035616,3]
[359317660,1745917843766,-400.0,0.00035616,3]
[359317662,1745917843776,-400.0,0.00035616,3]
[359317664,1745917843786,-400.0,0.00035616,3]
[359317666,1745917843795,-400.0,0.00035616,3]
[359317668,1745917843804,-400.0,0.00035616,3]
[359317670,1745917843814,-400.0,0.00035616,3]
[359317672,1745917843823,-400.0,0.00035616,3]
[359317674,1745917843833,-400.0,0.00035616,3]
[359317676,1745917843842,-400.0,0.00035616,3]
[359317678,1745917843852,-400.0,0.00035616,3]
[359317680,1745917843862,-400.0,0.00035616,3]
[359317683,1745917843872,-400.0,0.00035616,3]
[359317685,1745917843881,-400.0,0.00035616,3]
[359317687,1745917843890,-400.0,0.00035616,3]
[359317689,1745917843900,-400.0,0.00035616,3]
[359317691,1745917843910,-467.34,0.00035616,3]
[359317693,1745917843920,-400.0,0.00035616,3]
[359317695,1745917843930,-400.0,0.00035616,3]
[359317697,1745917843940,-400.0,0.00035616,3]
[359317699,1745917843950,-400.0,0.00035616,3]
[359317701,1745917843960,-400.0,0.00035616,3]
[359317703,1745917843970,-400.0,0.00035616,3]
[359317705,1745917843979,-400.0,0.00035616,3]
[359317707,1745917843989,-400.0,0.00035616,3]
[359317709,1745917843999,-400.0,0.00035616,3]
[359317711,1745917844010,-400.0,0.00035616,3]
[359317712,1745917844019,-400.0,0.00035616,3]
[359317715,1745917844030,-400.0,0.00035616,3]
[359317717,1745917844041,-400.0,0.00035616,3]
[359317719,1745917844051,-400.0,0.00035616,3]
[359317721,1745917844061,-400.0,0.00035616,3]
[359317723,1745917844071,-400.0,0.00035616,3]
[359317725,1745917844081,-400.0,0.00035616,3]
[359317727,1745917844093,-400.14129487,0.00035616,3]
[359317729,1745917844102,-400.0,0.00035616,3]
[359317731,1745917844112,-400.0,0.00035616,3]
[359317733,1745917844121,-400.0,0.00035616,3]
[359317735,1745917844130,-400.67087567,0.00035616,3]
[359317737,1745917844140,-400.0,0.00035616,3]
[359317739,1745917844150,-203.79582791,0.00035616,3]
[359317741,1745917844160,-400.0,0.00035616,3]
[359317743,1745917844169,-400.0,0.00035616,3]
[359317745,1745917844179,-400.0,0.00035616,3]
[359317747,1745917844189,-400.0,0.00035616,3]
[359317749,1745917844198,-400.0,0.00035616,3]
[359317751,1745917844207,-400.0,0.00035616,3]
[359317753,1745917844217,-400.0,0.00035616,3]
[359317755,1745917844231,-400.0,0.00035616,3]
[359317757,1745917844241,-400.0,0.00035616,3]
[359317759,1745917844250,-400.0,0.00035616,3]
[359317761,1745917844259,-400.0,0.00035616,3]
[359317763,1745917844271,-400.0,0.00035616,3]
[359317765,1745917844280,-400.0,0.00035616,3]
[359317767,1745917844290,-400.0,0.00035616,3]
[359317769,1745917844299,-400.0,0.00035616,3]
[359317771,1745917844309,-400.0,0.00035616,3]
[359317773,1745917844319,-400.0,0.00035616,3]
[359317775,1745917844328,-400.0,0.00035616,3]
[359317777,1745917844337,-400.0,0.00035616,3]
[359317779,1745917844348,-543.36,0.00035616,3]
[359317781,1745917844357,-400.0,0.00035616,3]
[359317783,1745917844366,-400.0,0.00035616,3]
[359317785,1745917844375,-400.0,0.00035616,3]
[359317787,1745917844384,-1109.86,0.00035616,3]
[359317789,1745917844395,-548.48399133,0.00035616,3]
[359317791,1745917844409,-400.0,0.00035616,3]
[359317793,1745917844418,-400.0,0.00035616,3]
[359317795,1745917844428,-400.0,0.00035616,3]
[359317797,1745917844439,-400.0,0.00035616,3]
[359317799,1745917844448,-400.0,0.00035616,3]
[359317801,1745917844458,-400.0,0.00035616,3]
[359317803,1745917844468,-402.15076663,0.00035616,3]
[359317805,1745917844477,-400.0,0.00035616,3]
[359317807,1745917844487,-400.0,0.00035616,3]
[359317809,1745917844500,-400.0,0.00035616,3]
[359317811,1745917844510,-400.0,0.00035616,3]
[359317813,1745917844519,-205.67903792,0.00035616,3]
[359317815,1745917844530,-400.0,0.00035616,3]
[359317818,1745917844540,-400.0,0.00035616,3]
[359317819,1745917844550,-2339.59,0.00035616,3]
[359317822,1745917844560,-400.0,0.00035616,3]
[359317823,1745917844570,-400.0,0.00035616,3]
[359317824,1745917844580,-400.0,0.00035616,3]
[359317825,1745917844591,-400.0,0.00035616,3]
[359317826,1745917844601,-400.0,0.00035616,3]
[359317827,1745917844611,-400.0,0.00035616,3]
[359317828,1745917844622,-400.0,0.00035616,3]
[359317829,1745917844632,-256.21632168,0.00035616,3]
[359317830,1745917844642,-400.0,0.00035616,3]
[359317831,1745917844652,-400.0,0.00035616,3]
[359317832,1745917844662,-273.3758421,0.00035616,3]
[359317833,1745917844672,-400.0,0.00035616,3]
[359317834,1745917844682,-206.54334521,0.00035616,3]
[359317835,1745917844691,-232.87066234,0.00035616,3]
[359317836,1745917844701,-400.0,0.00035616,2]
[359317837,1745917844711,-578.83,0.00035616,3]
[359317838,1745917844722,-205.4461047,0.00035616,3]
[359317839,1745917844731,-400.0,0.00035616,3]
[359317840,1745917844741,-581.24,0.00035616,3]
[359317841,1745917844750,-400.0,0.00035616,3]
[359317842,1745917844759,-400.0,0.00035616,3]
[359317843,1745917844769,-400.0,0.00035616,3]
[359317844,1745917844779,-400.0,0.00035616,3]
[359317845,1745917844801,-400.0,0.00035616,3]
[359317846,1745917844820,-415.85,0.00035616,3]
[359317847,1745917844829,-201.92046892,0.00035616,3]
[359317848,1745917844839,-400.0,0.00035616,3]
[359317849,1745917844849,-400.0,0.00035616,3]
[359317850,1745917844859,-1651.49,0.00035616,3]
[359317851,1745917844868,-400.0,0.00035616,3]
[359317852,1745917844878,-400.0,0.00035616,3]
[359317853,1745917844889,-400.0,0.00035616,3]
[359317854,1745917844898,-400.0,0.00035616,3]
[359317855,1745917844908,-400.0,0.00035616,3]
[359317856,1745917844918,-400.0,0.00035616,3]
[359317857,1745917844928,-400.0,0.00035616,3]
[359317858,1745917844938,-1797.06,0.00035616,3]
[359317859,1745917844948,-672.23,0.00035616,3]
[359317860,1745917844958,-400.0,0.00035616,3]
[359317861,1745917844970,-400.0,0.00035616,3]
[359317863,1745917844980,-569.08,0.00035616,3]
[359317865,1745917844990,-400.0,0.00035616,3]
[359317867,1745917845000,-400.0,0.00035616,3]
[359317869,1745917845011,-400.0,0.00035616,3]
[359317871,1745917845021,-400.0,0.00035616,3]
[359317873,1745917845031,-400.0,0.00035616,3]
[359317875,1745917845041,-252.35510095,0.00035616,3]
[359317877,1745917845051,-400.0,0.00035616,3]
[359317878,1745917845061,-400.0,0.00035616,3]
[359317879,1745917845070,-400.0,0.00035616,3]
[359317880,1745917845080,-400.0,0.00035616,3]
[359317881,1745917845090,-1000.0,0.00035616,3]
[359317882,1745917845100,-400.0,0.00035616,3]
[359317883,1745917845111,-400.0,0.00035616,3]
[359317884,1745917845122,-400.0,0.00035616,3]
[359317885,1745917845132,-400.0,0.00035616,3]
[359317886,1745917845142,-2660.81,0.00035616,3]
[359317887,1745917845152,-414.64,0.00035616,3]
[359317888,1745917845162,-400.0,0.00035616,3]
[359317889,1745917845172,-997.39,0.00035616,3]
[359317890,1745917845182,-400.0,0.00035616,3]
[359317891,1745917845192,-400.0,0.00035616,3]
[359317892,1745917845201,-1228.51,0.00035616,3]
[359317893,1745917845212,-400.0,0.00035616,3]
[359317894,1745917845225,-454.78134902,0.00035616,3]
[359317895,1745917845235,-400.0,0.00035616,3]
[359317896,1745917845245,-3506.68,0.00035616,3]
[359317897,1745917845255,-400.0,0.00035616,3]
[359317898,1745917845265,-400.0,0.00035616,3]
[359317899,1745917845275,-194.6541269,0.00035616,3]
[359317900,1745917845285,-813.5,0.00035616,3]
[359317901,1745917845296,-400.0,0.00035616,3]
[359317902,1745917845306,-400.0,0.00035616,3]
[359317903,1745917845316,-400.0,0.00035616,3]
[359317904,1745917845328,-400.0,0.00035616,3]
[359317905,1745917845338,-400.0,0.00035616,3]
[359317906,1745917845348,-400.0,0.00035616,3]
[359317907,1745917845359,-400.0,0.00035616,3]
[359317908,1745917845369,-400.0,0.00035616,3]
[359317909,1745917845378,-400.0,0.00035616,3]
[359317910,1745917845388,-400.0,0.00035616,3]
[359317911,1745917845399,-862.14,0.00035616,3]
[359317912,1745917845409,-1256.43,0.00035616,3]
[359317913,1745917845421,-400.0,0.00035616,3]
[359317914,1745917845431,-400.0,0.00035616,3]
[359317915,1745917845442,-400.0,0.00035616,3]
[359317916,1745917845452,-400.0,0.00035616,3]
[359317917,1745917845462,-400.0,0.00035616,3]
[359317918,1745917845473,-400.0,0.00035616,3]
[359317919,1745917845483,-933.08,0.00035616,3]
[359317920,1745917845494,-1112.05,0.00035616,3]
[359317921,1745917845504,-400.0,0.00035616,3]
[359317922,1745917845514,-318.07043957,0.00035616,3]
[359317926,1745917845721,-327.05892748,0.00035616,3]
[359317927,1745917845731,-400.0,0.00035616,3]
[359317928,1745917845741,-400.0,0.00035616,3]
[359317929,1745917845751,-400.0,0.00035616,3]
[359317930,1745917845761,-400.0,0.00035616,3]
[359317931,1745917845771,-410.12,0.00035616,3]
[359317932,1745917845781,-451.63,0.00035616,3]
[359317933,1745917845791,-400.0,0.00035616,3]
[359317934,1745917845801,-400.0,0.00035616,3]
[359317935,1745917845811,-400.0,0.00035616,3]
[359317936,1745917845821,-1749.9,0.00035616,3]
[359317937,1745917845832,-400.0,0.00035616,3]
[359317938,1745917845841,-400.0,0.00035616,3]
[359317939,1745917845851,-401.74472977,0.00035616,3]
[359317940,1745917845861,-1000.0,0.00035616,5]
[359317941,1745917845871,-1677.2,0.00035616,3]
[359317942,1745917845881,-400.0,0.00035616,3]
[359317943,1745917845890,-400.0,0.00035616,3]
[359317945,1745917845900,-400.0,0.00035616,3]
[359317946,1745917845909,-400.0,0.00035616,3]
[359317947,1745917845918,-400.0,0.00035616,3]
[359317948,1745917845928,-946.24,0.00035616,3]
[359317949,1745917845938,-400.0,0.00035616,3]
[359317950,1745917845947,-400.0,0.00035616,3]
[359317951,1745917845957,-400.0,0.00035616,3]
[359317952,1745917845967,-773.28,0.00035616,3]
[359317953,1745917845978,-400.0,0.00035616,3]
[359317954,1745917845988,-400.0,0.00035616,3]
[359317955,1745917845997,-400.0,0.00035616,3]
[359317956,1745917846008,-400.0,0.00035616,3]
[359317957,1745917846018,-400.0,0.00035616,3]
[359317958,1745917846028,-400.0,0.00035616,3]
[359317959,1745917846037,-162.77250207,0.00035616,3]
[359317960,1745917846047,-400.0,0.00035616,3]
[359317961,1745917846057,-400.0,0.00035616,3]